bitfinex/quotes_SOLUSD_20241205
["timestamp","ask_amount","ask_price","bid_price","bid_amount"]
[1733410339154,32.38742014,240.65,240.57,32.38742014]
[1733410339361,32.38742014,240.63,240.55,32.38742014]
[1733410339546,6.3208328,240.62,240.57,32.38742014]
[1733410339982,6.3208328,240.62,240.59,32.38742014]
[1733410340277,170.18742014,240.71,240.61,32.38742014]
[1733410340464,170.18742014,240.71,240.64,32.38742014]
[1733410340673,32.38742014,240.71,240.64,32.38742014]
[1733410340861,32.38742014,240.71,240.62,32.38742014]
[1733410341069,170.18742014,240.73,240.64,32.38742014]
[1733410341249,32.38742014,240.71,240.65,20.0]
[1733410341452,32.38742014,240.69,240.65,20.0]
[1733410341668,32.38742014,240.67,240.65,20.0]
[1733410341863,32.38742014,240.67,240.63,20.0]
[1733410342161,32.38742014,240.65,240.54,32.38742014]
[1733410342458,137.8,240.68,240.58,32.38742014]
[1733410342766,32.38742014,240.66,240.58,32.38742014]
[1733410343083,32.38742014,240.64,240.58,32.38742014]
[1733410343457,32.38742014,240.66,240.58,32.38742014]
[1733410343974,32.38742014,240.64,240.57,0.12549]
[1733410344275,32.38742014,240.64,240.59,20.0]
[1733410344855,143.73986058,240.65,240.61,20.0]
[1733410345084,32.38742014,240.64,240.56,32.38742014]
[1733410345554,137.8,240.62,240.56,32.38742014]
[1733410345870,32.38742014,240.64,240.56,32.38742014]
[1733410346073,10.3866,240.7,240.48,32.38742014]
[1733410346074,32.38742014,240.67,240.59,32.38742014]
[1733410346276,170.18742014,240.66,240.58,32.38742014]
[1733410346450,32.38742014,240.66,240.61,20.0]
[1733410347173,32.38742014,240.63,240.56,32.38742014]
[1733410347377,32.38742014,240.64,240.57,0.12549]
[1733410347757,32.38742014,240.6,240.52,56.16430414]
[1733410347963,32.38742014,240.6,240.46,10.3963]
[1733410347964,19.91785024,240.54,240.46,19.91785024]
[1733410348169,19.91785024,240.53,240.46,19.91785024]
[1733410348374,19.91785024,240.55,240.47,19.91785024]
[1733410348562,19.91785024,240.55,240.48,19.91785024]
[1733410348762,144.1218,240.66,240.48,19.91785024]
[1733410348763,19.91785024,240.57,240.49,0.12549]
[1733410349083,19.91785024,240.55,240.48,19.91785024]
[1733410349254,19.91785024,240.53,240.45,19.91785024]
[1733410349948,32.38066535,240.49,240.41,32.38066535]
[1733410350448,32.38066535,240.49,240.42,0.12549]
[1733410350759,32.38066535,240.47,240.39,32.38066535]
[1733410350962,5.31408581,240.56,240.42,32.38066535]
[1733410350963,32.38066535,240.5,240.42,32.38066535]
[1733410351163,32.38066535,240.52,240.45,0.12549]
[1733410351349,32.38066535,240.56,240.48,32.38066535]
[1733410351555,32.38066535,240.56,240.45,0.12549]
[1733410351556,1.6112,240.62,240.51,0.12549]
[1733410351775,32.38066535,240.6,240.53,0.12549]
[1733410351978,32.38066535,240.62,240.57,20.0]
[1733410352282,32.38066535,240.66,240.61,20.0]
[1733410352456,32.38066535,240.64,240.61,20.0]
[1733410352967,32.38066535,240.64,240.58,24.027864]
[1733410352968,32.38066535,240.64,240.59,20.0]
[1733410353164,32.38066535,240.62,240.57,20.0]
[1733410353767,32.38066535,240.64,240.59,20.0]
[1733410354187,32.38066535,240.68,240.61,20.0]
[1733410354484,32.38066535,240.7,240.63,52.38066535]
[1733410354699,32.38066535,240.7,240.6,0.12549]
[1733410354700,32.38066535,240.74,240.68,20.0]
[1733410354881,32.38066535,240.7,240.68,20.0]
[1733410355190,32.38066535,240.7,240.6,0.12549]
[1733410355481,32.38066535,240.68,240.6,20.12549]
[1733410355781,32.38066535,240.64,240.62,20.0]
[1733410355982,32.38066535,240.64,240.53,32.38066535]
[1733410356164,32.38066535,240.6,240.53,32.38066535]
[1733410356572,170.18066535,240.62,240.53,32.38066535]
[1733410357062,170.18066535,240.62,240.55,32.38066535]
[1733410357263,32.38066535,240.68,240.62,20.0]
[1733410357466,32.38066535,240.66,240.62,20.0]
[1733410357870,32.38066535,240.66,240.58,0.12549]
[1733410358189,137.8,240.67,240.62,20.0]
[1733410358386,32.38066535,240.68,240.64,20.0]
[1733410358690,32.38066535,240.7,240.66,20.0]
[1733410359057,32.38066535,240.7,240.64,20.0]
[1733410359561,32.38066535,240.68,240.64,20.0]
[1733410359762,32.38066535,240.68,240.63,0.12549]
[1733410360087,32.38066535,240.68,240.62,20.12549]
[1733410360461,32.38066535,240.68,240.62,20.0]
[1733410360668,32.38066535,240.65,240.57,52.38066535]
[1733410361388,32.38066535,240.67,240.62,20.0]
[1733410361594,32.38066535,240.65,240.62,20.0]
[1733410361772,32.38066535,240.69,240.62,20.0]
[1733410361974,32.38066535,240.69,240.59,32.38066535]
[1733410362216,32.38066535,240.65,240.58,0.12549]
[1733410362397,32.38066535,240.69,240.62,0.12549]
[1733410362689,32.38066535,240.67,240.62,20.12549]
[1733410363064,137.8,240.69,240.62,20.12549]
[1733410363065,170.18066535,240.69,240.62,20.12549]
[1733410363371,32.38066535,240.67,240.62,0.12549]
[1733410363581,170.18066535,240.69,240.61,32.38066535]
[1733410363781,137.8,240.69,240.62,0.12549]
[1733410363989,137.8,240.7,240.66,20.0]
[1733410364294,32.38066535,240.71,240.66,20.0]
[1733410364465,32.38066535,240.69,240.61,32.38066535]
[1733410364666,170.18066535,240.69,240.64,20.0]
[1733410365075,32.38066535,240.69,240.64,20.0]
[1733410365273,170.18066535,240.69,240.64,20.0]
[1733410365973,137.8,240.69,240.64,20.0]
[1733410366373,137.8,240.69,240.66,20.0]
[1733410368096,32.38066535,240.71,240.66,20.0]
[1733410369976,137.8,240.75,240.67,32.38066535]
[1733410369977,32.38066535,240.75,240.67,32.38066535]
[1733410371177,32.38066535,240.73,240.65,32.38066535]
[1733410371380,32.38066535,240.73,240.68,20.0]
[1733410371878,32.38066535,240.71,240.65,0.12549]
[1733410372178,19.88884716,240.74,240.67,20.0]
[1733410372385,19.88884716,240.74,240.67,39.88884716]
[1733410372592,5.3095056,240.74,240.67,39.88884716]
[1733410372792,25.19835276,240.74,240.66,19.88884716]
[1733410373377,19.88884716,240.72,240.65,20.01433716]
[1733410373803,19.88884716,240.73,240.68,20.0]
[1733410373999,5.3095056,240.74,240.68,39.88884716]
[1733410374203,137.8,240.75,240.71,19.88884716]
[1733410374410,157.68884716,240.8,240.74,20.0]
[1733410374704,137.8,240.79,240.74,20.0]
[1733410374905,19.88884716,240.87,240.77,19.88884716]
[1733410375106,157.68884716,240.89,240.82,19.88884716]
[1733410375287,20.36281526,240.96,240.82,19.88884716]
[1733410375288,157.68884716,240.93,240.85,19.88884716]
[1733410375605,137.8,240.91,240.85,19.88884716]
[1733410375907,137.8,240.95,240.9,39.88884716]
[1733410376076,0.4739681,240.96,240.9,39.88884716]
[1733410377503,19.88884716,240.95,240.91,20.0]
[1733410380294,19.88884716,240.95,240.88,19.88884716]
[1733410380912,157.68884716,240.95,240.86,19.88884716]
[1733410381277,19.88884716,240.95,240.89,20.0]
[1733410382509,5.96004727,240.94,240.89,20.0]
[1733410383613,0.4739681,240.96,240.95,20.0]
[1733410384111,20.36281526,240.96,240.91,20.0]
[1733410384494,0.4739681,240.96,240.92,19.88884716]
[1733410384692,0.4739681,240.96,240.94,19.88884716]
[1733410385790,0.4739681,240.96,240.92,19.88884716]
[1733410387112,20.36281526,240.96,240.93,20.0]
[1733410387324,19.88884716,240.94,240.84,19.88884716]
[1733410387483,6.33958771,240.93,240.84,19.88884716]
[1733410387891,6.33958771,240.93,240.88,19.88884716]
[1733410388102,137.8,240.94,240.88,19.88884716]
[1733410388289,19.88884716,240.92,240.84,19.88884716]
[1733410388809,19.88884716,240.92,240.87,20.0]
[1733410389210,157.68884716,240.94,240.87,20.0]
[1733410389398,19.88884716,240.9,240.85,20.0]
[1733410390417,157.68884716,240.92,240.85,20.0]
[1733410390596,137.8,240.91,240.87,20.0]
[1733410391395,137.8,240.91,240.77,10.3831]
[1733410391396,19.88884716,240.88,240.79,19.88884716]
[1733410391723,19.88884716,240.83,240.76,6.3122]
[1733410392293,137.8,240.82,240.76,6.3122]
[1733410392496,19.88884716,240.81,240.73,19.88884716]
[1733410392700,137.8,240.78,240.71,19.88884716]
[1733410393427,19.88884716,240.75,240.67,19.88884716]
[1733410393626,1.6168,240.83,240.59,19.88884716]
[1733410393627,19.88884716,240.68,240.59,19.88884716]
[1733410393919,19.88884716,240.64,240.57,25.89374716]
[1733410394137,26.34828521,240.64,240.57,25.89374716]
[1733410394310,137.8,240.65,240.57,25.89374716]
[1733410394997,137.8,240.65,240.6,19.88884716]
[1733410395192,137.8,240.65,240.64,39.88884716]
[1733410395415,19.88884716,240.72,240.64,19.88884716]
[1733410395615,19.88884716,240.7,240.65,20.0]
[1733410395993,19.88884716,240.68,240.65,20.0]
[1733410396216,19.88884716,240.7,240.63,20.0]
[1733410397130,19.88884716,240.66,240.58,19.88884716]
[1733410397720,19.88884716,240.64,240.57,6.0049]
[1733410398033,19.88884716,240.65,240.57,6.0049]
[1733410398224,137.8,240.68,240.57,6.0049]
[1733410398411,19.88884716,240.63,240.57,6.0049]
[1733410398614,19.88884716,240.63,240.54,19.88884716]
[1733410398803,157.68884716,240.65,240.56,19.88884716]
[1733410399003,19.88884716,240.65,240.58,19.88884716]
[1733410399222,19.88884716,240.65,240.56,19.88884716]
[1733410399844,137.8,240.67,240.6,19.88884716]
[1733410400005,19.88884716,240.68,240.6,19.88884716]
[1733410400006,19.88884716,240.68,240.63,20.0]
[1733410400325,137.8,240.79,240.66,20.0]
[1733410400524,19.88884716,240.75,240.67,19.88884716]
[1733410400738,157.68884716,240.77,240.69,19.88884716]
[1733410400922,137.8,240.77,240.72,19.88884716]
[1733410401105,19.88884716,240.79,240.7,19.88884716]
[1733410401541,19.88884716,240.77,240.7,19.88884716]
[1733410401999,19.88884716,240.75,240.71,20.0]
[1733410402203,19.88884716,240.73,240.64,19.88884716]
[1733410402428,19.88884716,240.73,240.67,20.0]
[1733410403523,19.88884716,240.71,240.69,20.0]
[1733410403905,19.88884716,240.73,240.69,20.0]
[1733410404337,19.88884716,240.73,240.67,0.12549]
[1733410405129,19.88884716,240.73,240.67,20.0]
[1733410405307,19.88884716,240.71,240.67,20.0]
[1733410405813,19.88884716,240.71,240.66,20.0]
[1733410406129,19.88884716,240.73,240.67,0.12549]
[1733410406331,19.88884716,240.71,240.67,20.0]
[1733410406628,19.88884716,240.69,240.63,6.1098]
[1733410407135,19.88884716,240.69,240.62,19.88884716]
[1733410407306,19.88884716,240.69,240.6,19.88884716]
[1733410408238,19.88884716,240.69,240.63,0.12549]
[1733410408713,137.8,240.72,240.65,20.0]
[1733410408914,19.88884716,240.69,240.61,0.12549]
[1733410409512,19.88884716,240.69,240.61,20.25098]
[1733410409830,19.88884716,240.69,240.63,20.0]
[1733410410050,19.88884716,240.65,240.63,20.0]
[1733410410208,19.88884716,240.64,240.57,6.5579]
[1733410411237,19.88884716,240.69,240.62,0.12549]
[1733410411537,19.88884716,240.67,240.62,0.12549]
[1733410411830,19.88884716,240.67,240.6,20.0]
[1733410413641,19.88884716,240.69,240.61,20.01433716]
[1733410413937,157.68884716,240.71,240.64,20.0]
[1733410414114,19.88884716,240.69,240.64,20.0]
[1733410414313,19.88884716,240.69,240.61,20.01433716]
[1733410414835,19.88884716,240.67,240.6,0.12549]
[1733410415041,19.88884716,240.67,240.62,20.0]
[1733410416444,19.88884716,240.67,240.6,20.0]
[1733410416652,19.88884716,240.67,240.61,20.0]
[1733410417143,19.88884716,240.67,240.6,20.0]
[1733410417313,137.8,240.66,240.61,20.0]
[1733410417642,19.88884716,240.65,240.56,19.88884716]
[1733410417820,19.88884716,240.65,240.58,20.01433716]
[1733410418723,19.88884716,240.65,240.61,20.0]
[1733410418932,19.88884716,240.65,240.6,20.0]
[1733410419134,19.88884716,240.63,240.56,19.88884716]
[1733410420512,19.88884716,240.63,240.54,19.88884716]
[1733410420732,19.88884716,240.58,240.51,6.5934]
[1733410421954,19.88884716,240.62,240.54,19.88884716]
[1733410422142,19.88884716,240.64,240.56,19.88884716]
[1733410422311,19.88884716,240.62,240.54,19.88884716]
[1733410422716,19.88884716,240.58,240.51,6.5934]
[1733410423137,19.88884716,240.6,240.52,19.88884716]
[1733410423329,19.88884716,240.6,240.53,0.12549]
[1733410423522,19.88884716,240.6,240.52,19.88884716]
[1733410423928,157.68884716,240.62,240.55,20.0]
[1733410424135,137.8,240.61,240.54,39.88884716]
[1733410425746,19.88884716,240.6,240.55,20.0]
[1733410426146,12.44165973,240.6,240.55,20.0]
[1733410428358,12.44165973,240.58,240.55,20.0]
[1733410428651,12.44165973,240.58,240.54,20.0]
[1733410429847,12.44165973,240.56,240.48,12.44165973]
[1733410430055,12.44165973,240.58,240.5,12.44165973]
[1733410430363,150.24165973,240.6,240.52,12.44165973]
[1733410430527,137.8,240.6,240.54,12.44165973]
[1733410431048,137.8,240.6,240.56,12.44165973]
[1733410431357,12.44165973,240.67,240.62,20.0]
[1733410432350,12.44165973,240.63,240.57,20.0]
[1733410432551,12.44165973,240.6,240.55,20.0]
[1733410433231,12.44165973,240.62,240.57,20.0]
[1733410433537,12.44165973,240.64,240.57,20.0]
[1733410434758,12.44165973,240.64,240.56,32.44165973]
[1733410436152,12.44165973,240.6,240.52,12.44165973]
[1733410436662,12.44165973,240.6,240.55,20.0]
[1733410437448,12.44165973,240.6,240.52,12.44165973]
[1733410437654,12.44165973,240.58,240.53,20.0]
[1733410439938,12.44165973,240.6,240.55,20.0]
[1733410440335,12.44165973,240.72,240.56,12.44165973]
[1733410440336,12.44165973,240.64,240.56,12.44165973]
[1733410440536,137.8,240.7,240.64,20.0]
[1733410440842,137.8,240.7,240.65,12.44165973]
[1733410441039,150.24165973,240.7,240.62,20.0]
[1733410441252,12.44165973,240.68,240.62,20.0]
[1733410441561,12.44165973,240.7,240.62,20.0]
[1733410441728,12.44165973,240.7,240.64,20.0]
[1733410442653,12.44165973,240.68,240.64,20.0]
[1733410443563,150.24165973,240.72,240.64,20.0]
[1733410444161,12.44165973,240.72,240.66,20.0]
[1733410444459,12.44165973,240.79,240.72,20.0]
[1733410444860,12.44165973,240.79,240.73,12.44165973]
[1733410445035,12.44165973,240.77,240.72,20.0]
[1733410445437,12.44165973,240.79,240.72,20.0]
[1733410445664,12.44165973,240.79,240.74,20.0]
[1733410445834,150.24165973,240.81,240.74,20.0]
[1733410446035,12.44165973,240.83,240.78,20.0]
[1733410446361,12.44165973,240.86,240.78,12.44165973]
[1733410447132,12.44165973,240.84,240.77,0.12549]
[1733410447567,12.44165973,240.8,240.77,20.0]
[1733410447732,12.44165973,240.78,240.76,20.0]
[1733410447932,12.44165973,240.82,240.76,20.0]
[1733410448147,12.44165973,240.82,240.78,20.0]
[1733410448871,12.44165973,240.82,240.75,32.44165973]
[1733410449665,150.24165973,240.84,240.75,32.44165973]
[1733410449964,12.44165973,240.82,240.75,32.44165973]
[1733410450163,12.44165973,240.8,240.76,20.0]
[1733410451566,12.44165973,240.8,240.75,20.0]
[1733410451744,12.44165973,240.78,240.75,20.0]
[1733410451943,12.44165973,240.76,240.69,12.44165973]
[1733410452473,12.44165973,240.7,240.61,1.5353]
[1733410452769,12.44165973,240.68,240.61,13.97695973]
[1733410452980,12.44165973,240.74,240.67,12.44165973]
[1733410453144,12.44165973,240.78,240.69,12.44165973]
[1733410453449,12.44165973,240.78,240.71,12.44165973]
[1733410453648,12.44165973,240.76,240.67,12.44165973]
[1733410454165,12.44165973,240.76,240.68,0.12549]
[1733410454340,12.44165973,240.76,240.7,20.0]
[1733410455675,12.44165973,240.76,240.67,12.44165973]
[1733410455870,12.44165973,240.73,240.65,12.44165973]
[1733410456064,137.8,240.75,240.68,12.44165973]
[1733410456577,12.44165973,240.74,240.66,12.44165973]
[1733410457283,12.44165973,240.74,240.69,20.0]
[1733410458550,12.44165973,240.74,240.66,12.44165973]
[1733410458880,12.44165973,240.7,240.64,0.7]
[1733410460368,12.44165973,240.7,240.65,20.0]
[1733410460854,12.44165973,240.68,240.65,20.0]
[1733410461566,150.24165973,240.7,240.65,20.0]
[1733410461761,12.44165973,240.7,240.65,20.0]
[1733410462657,12.44165973,240.68,240.64,0.7]
[1733410463178,12.44165973,240.66,240.64,0.7]
[1733410463474,12.44165973,240.68,240.64,0.7]
[1733410464072,12.44165973,240.7,240.64,0.7]
[1733410464473,12.44165973,240.68,240.64,0.7]
[1733410464680,150.24165973,240.71,240.64,0.7]
[1733410464896,12.44165973,240.73,240.66,12.44165973]
[1733410465198,137.8,240.76,240.7,12.56714973]
[1733410465391,12.44165973,240.78,240.73,20.0]
[1733410466487,12.44165973,240.8,240.73,20.0]
[1733410466685,12.44165973,240.8,240.75,20.0]
[1733410467068,12.44165973,240.82,240.77,0.12549]
[1733410467270,12.44165973,240.84,240.77,0.12549]
[1733410467473,12.44165973,240.86,240.78,12.44165973]
[1733410467774,12.44165973,240.84,240.79,20.0]
[1733410469003,12.44165973,240.82,240.74,32.44165973]
[1733410469511,12.44165973,240.84,240.79,20.0]
[1733410469710,10.3782,240.89,240.79,20.0]
[1733410469711,137.8,240.88,240.79,20.0]
[1733410470005,12.44165973,240.88,240.83,20.0]
[1733410470297,12.44165973,240.94,240.89,20.0]
[1733410471500,0.4739681,240.96,240.9,12.44165973]
[1733410471681,0.4739681,240.96,240.93,20.0]
[1733410472090,12.91562783,240.96,240.93,20.0]
[1733410472409,12.91562783,240.96,240.89,20.0]
[1733410472600,12.91562783,240.96,240.91,20.0]
[1733410472904,12.44165973,240.94,240.91,20.0]
[1733410473115,12.44165973,240.94,240.89,20.0]
[1733410474000,12.44165973,240.92,240.87,20.0]
[1733410474173,12.44165973,240.88,240.76,1.5765]
[1733410474380,12.44165973,240.88,240.8,12.44165973]
[1733410475504,12.44165973,240.88,240.83,20.0]
[1733410475709,12.44165973,240.86,240.82,20.0]
[1733410476011,12.44165973,240.88,240.82,20.0]
[1733410476384,12.44165973,240.88,240.83,20.0]
[1733410477102,12.44165973,240.86,240.82,20.0]
[1733410478478,12.44165973,240.84,240.79,20.0]
[1733410479484,12.44165973,240.8,240.73,6.4327]
[1733410480794,12.44165973,240.8,240.76,20.0]
[1733410481588,137.8,240.82,240.76,20.0]
[1733410481589,150.24165973,240.82,240.76,20.0]
[1733410481890,12.44165973,240.8,240.76,20.0]
[1733410482083,150.24165973,240.82,240.76,20.0]
[1733410482394,12.44165973,240.8,240.76,20.0]
[1733410482788,150.24165973,240.82,240.76,20.0]
[1733410483402,12.44165973,240.8,240.76,20.0]
[1733410486212,12.44165973,240.78,240.76,20.0]
[1733410486586,12.44165973,240.78,240.7,14.09835973]
[1733410486899,12.44165973,240.78,240.73,20.0]
[1733410487090,137.8,240.82,240.7,20.0]
[1733410487091,12.44165973,240.76,240.7,20.0]
[1733410487297,12.44165973,240.74,240.67,6.1886]
[1733410488389,11.74165973,240.74,240.67,6.1886]
[1733410488586,12.44165973,240.76,240.71,20.0]
[1733410490089,12.44165973,240.78,240.7,32.44165973]
[1733410490911,12.44165973,240.78,240.7,20.0]
[1733410491294,12.44165973,240.78,240.71,20.0]
[1733410491613,12.44165973,240.78,240.7,32.44165973]
[1733410491912,12.44165973,240.84,240.79,20.0]
[1733410494014,12.44165973,240.84,240.77,20.0]
[1733410494212,12.44165973,240.84,240.79,20.0]
[1733410494593,12.44165973,240.82,240.75,20.0]
[1733410494814,12.44165973,240.78,240.7,12.44165973]
[1733410495006,12.44165973,240.76,240.68,12.44165973]
[1733410495798,12.44165973,240.76,240.69,0.12549]
[1733410496225,12.44165973,240.76,240.71,20.0]
[1733410496794,12.44165973,240.74,240.7,20.0]
[1733410498309,12.44165973,240.74,240.69,20.0]
[1733410499613,12.44165973,240.7,240.66,20.0]
[1733410499936,12.44165973,240.7,240.59,10.3908]
[1733410499937,12.44165973,240.68,240.65,20.0]
[1733410500225,12.44165973,240.68,240.6,12.44165973]
[1733410500601,12.44165973,240.7,240.62,12.56714973]
[1733410500910,12.44165973,240.7,240.64,20.0]
[1733410501312,12.44165973,240.7,240.65,20.0]
[1733410501502,12.44165973,240.72,240.64,32.44165973]
[1733410502026,12.44165973,240.72,240.62,0.12549]
[1733410502027,12.44165973,240.74,240.69,20.0]
[1733410502901,12.44165973,240.75,240.67,12.44165973]
[1733410503209,12.44165973,240.74,240.69,20.0]
[1733410504126,12.44165973,240.75,240.69,20.0]
[1733410504334,12.44165973,240.85,240.77,20.0]
[1733410504629,12.44165973,240.85,240.78,12.44165973]
[1733410504841,12.44165973,240.85,240.77,20.0]
[1733410505131,12.44165973,240.79,240.77,20.0]
[1733410505332,12.44165973,240.82,240.77,20.0]
[1733410505629,12.44165973,240.83,240.77,20.0]
[1733410505833,12.44165973,240.83,240.78,20.0]
[1733410506122,12.44165973,240.81,240.78,20.0]
[1733410506326,12.44165973,240.83,240.78,20.0]
[1733410507343,12.44165973,240.85,240.77,32.44165973]
[1733410508314,12.44165973,240.83,240.77,20.0]
[1733410508635,12.44165973,240.81,240.77,20.0]
[1733410509030,12.44165973,240.83,240.78,20.0]
[1733410510204,12.44165973,240.85,240.8,20.0]
[1733410510403,12.44165973,240.83,240.8,20.0]
[1733410510611,12.44165973,240.85,240.8,20.0]
[1733410511332,137.8,240.9,240.74,6.4854]
[1733410511333,12.44165973,240.83,240.78,20.0]
[1733410511827,12.44165973,240.79,240.71,12.44165973]
[1733410512034,28.4303,240.93,240.75,12.44165973]
[1733410512035,12.44165973,240.83,240.75,12.44165973]
[1733410512217,12.44165973,240.81,240.73,12.44165973]
[1733410513335,12.44165973,240.81,240.76,20.0]
[1733410513646,12.44165973,240.77,240.7,1.6106]
[1733410514127,137.8,240.82,240.75,12.44165973]
[1733410514912,137.8,240.94,240.82,20.0]
[1733410515110,12.44165973,240.89,240.82,20.0]
[1733410515310,12.44165973,240.89,240.84,20.0]
[1733410516112,12.44165973,240.91,240.86,20.0]
[1733410516636,12.44165973,240.95,240.9,20.0]
[1733410516835,0.4739681,240.96,240.9,20.0]
[1733410517040,1.66819296,241.05,240.98,20.0]
[1733410517209,1.66819296,241.05,240.96,1.5898]
[1733410517210,137.8,241.11,241.07,20.0]
[1733410517411,12.44165973,241.09,240.97,20.0]
[1733410517638,12.44165973,241.07,241.01,20.0]
[1733410517845,12.44165973,241.09,241.03,20.0]
[1733410518323,12.44165973,241.09,241.02,12.44165973]
[1733410518730,12.44165973,241.09,241.03,0.12549]
[1733410518931,12.44165973,241.18,241.1,20.0]
[1733410519127,12.44165973,241.18,241.1,32.44165973]
[1733410519319,12.44165973,241.14,241.05,12.44165973]
[1733410519518,12.44165973,241.14,241.08,20.0]
[1733410519718,12.44165973,241.14,241.1,20.0]
[1733410520646,0.4739681,241.2,241.1,20.0]
[1733410520647,12.44165973,241.16,241.1,20.0]
[1733410521218,12.44165973,241.16,241.12,20.0]
[1733410521425,0.4739681,241.2,241.14,20.0]
[1733410521627,12.44165973,241.19,241.14,20.0]
[1733410522048,12.44165973,241.17,241.14,20.0]
[1733410522209,19.81390022,241.16,241.13,20.0]
[1733410522841,19.81390022,241.16,241.1,6.5965]
[1733410523322,20.28786832,241.2,241.13,20.0]
[1733410523727,20.28786832,241.2,241.15,20.0]
[1733410524430,0.4739681,241.2,241.15,20.0]
[1733410524627,0.4739681,241.2,241.17,20.0]
[1733410524961,20.28786832,241.2,241.14,1.6604]
[1733410525129,0.4739681,241.2,241.19,20.0]
[1733410525325,0.4739681,241.2,241.19,43.71627422]
[1733410525635,19.81390022,241.33,241.23,20.25098]
[1733410525832,19.81390022,241.36,241.29,20.0]
[1733410526550,19.81390022,241.36,241.28,19.81390022]
[1733410526723,19.81390022,241.36,241.31,20.0]
[1733410527449,19.81390022,241.38,241.31,20.0]
[1733410529041,19.81390022,241.38,241.3,19.81390022]
[1733410529351,19.81390022,241.38,241.33,20.0]
[1733410529563,19.81390022,241.4,241.33,20.0]
[1733410529765,19.81390022,241.4,241.35,20.0]
[1733410529957,19.81390022,241.38,241.35,20.0]
[1733410530128,19.81390022,241.36,241.35,20.0]
[1733410530329,19.81390022,241.38,241.31,20.0]
[1733410530552,19.81390022,241.38,241.3,19.81390022]
[1733410530858,19.81390022,241.38,241.33,20.0]
[1733410531234,19.81390022,241.36,241.33,20.0]
[1733410531744,19.81390022,241.36,241.31,20.0]
[1733410532456,19.81390022,241.39,241.33,20.0]
[1733410532667,19.81390022,241.39,241.35,20.0]
[1733410533239,19.81390022,241.39,241.36,20.0]
[1733410533938,19.81390022,241.37,241.26,19.81390022]
[1733410534141,19.81390022,241.34,241.26,19.81390022]
[1733410534539,19.81390022,241.32,241.25,6.0346]
[1733410534943,19.81390022,241.36,241.28,19.81390022]
[1733410535144,19.81390022,241.34,241.26,19.81390022]
[1733410535346,19.81390022,241.32,241.24,19.81390022]
[1733410536446,12.5828,241.31,241.24,19.81390022]
[1733410536636,12.5828,241.31,241.27,20.0]
[1733410536838,12.5828,241.31,241.24,19.81390022]
[1733410537669,19.81390022,241.28,241.21,19.81390022]
[1733410537966,12.5828,241.31,241.19,26.10920022]
[1733410537967,19.81390022,241.27,241.19,26.10920022]
[1733410538533,19.81390022,241.29,241.21,19.81390022]
[1733410538746,32.39670022,241.31,241.23,19.81390022]
[1733410540275,12.5828,241.31,241.26,20.0]
[1733410541549,32.39670022,241.31,241.26,20.0]
[1733410541963,19.81390022,241.29,241.22,20.0]
[1733410542155,19.81390022,241.27,241.24,20.0]
[1733410542348,19.81390022,241.27,241.22,20.0]
[1733410542670,19.81390022,241.27,241.19,19.81390022]
[1733410543761,19.81390022,241.25,241.2,20.0]
[1733410543968,19.81390022,241.23,241.15,19.81390022]
[1733410544273,19.81390022,241.19,241.04,6.13]
[1733410544486,19.81390022,241.17,241.09,19.81390022]
[1733410544956,19.81390022,241.21,241.13,19.81390022]
[1733410545164,19.81390022,241.19,241.11,19.81390022]
[1733410545975,137.8,241.22,241.11,19.81390022]
[1733410546148,19.81390022,241.21,241.13,19.81390022]
[1733410546550,19.81390022,241.24,241.17,19.81390022]
[1733410546770,19.81390022,241.26,241.2,20.0]
[1733410547687,19.81390022,241.26,241.22,20.0]
[1733410547889,12.5828,241.31,241.22,20.0]
[1733410547890,19.81390022,241.28,241.22,20.0]
[1733410548057,12.5828,241.31,241.23,23.902374]
[1733410548058,19.81390022,241.3,241.23,23.902374]
[1733410548377,19.81390022,241.3,241.26,20.0]
[1733410549263,19.81390022,241.3,241.24,20.0]
[1733410549459,19.81390022,241.26,241.22,20.0]
[1733410549652,12.5828,241.31,241.23,19.81390022]
[1733410549855,19.81390022,241.3,241.22,20.0]